Cogmind - Beta 9.6 @@@ ROGUE MODE // 2020.06.10 @ 19:21:40 // Winter2019/RPGLIKE Player: MitchellFJN Result: Destroyed by as-23288 with Assembled Heavy Rifle Performance ------------- Evolutions (0) 0 Regions Visited (2) 400 Robots Destroyed (13) 65 Value Destroyed (250) 250 Prototype IDs (0) 0 Alien Tech Used (0) 0 Bonus (0) 0 TOTAL SCORE: 715 Bonus ------- None Cogmind --------- Core Integrity 0/600 Matter 219/300 Energy 250/250 System Corruption 0% Temperature Cool (0) Movement Rolling (100) Ox1 Location -10/Mines Parts ------- > --- POWER (1) -------- Ion Engine > --- PROPULSION (1) --- Armored Wheel > --- UTILITY (2) ------ Improved Heat Sink > --- WEAPON (3) ------- Heavy Assault Rifle Heavy Assault Rifle Heavy Assault Rifle > --- INVENTORY (2) ---- Armored Wheel Heavy Assault Rifle Peak State ------------ > --- POWER ------------ Ion Engine > --- PROPULSION ------- Armored Wheel > --- UTILITY ---------- Improved Heat Sink > --- WEAPON ----------- Heavy Assault Rifle Heavy Assault Rifle Heavy Assault Rifle > --- INVENTORY -------- Armored Wheel Heavy Assault Rifle [Rating: 12] Favorites ----------- Power Ion Engine Engine Ion Engine Propulsion Armored Wheel Leg Aluminum Leg Wheel Armored Wheel Utility Improved Heat Sink Device Improved Heat Sink Weapon Heavy Assault Rifle Ballistic Gun Heavy Assault Rifle Build | -11 -10 -10 ------- Run | Scr Mat Min Slots Evolved 3 | 3 . . Power . | . . . Propulsion . | . . . Utility 1 | 1 . . Weapon 2 | 2 . . Parts Attached 7 | 2 5 . Power . | . . . Engine . | . . . Core . | . . . Reactor . | . . . Propulsion 2 | 1 1 . Treads . | . . . Leg . | . . . Wheel 2 | 1 1 . Hover . | . . . Flight . | . . . Utility 1 | . 1 . Device 1 | . 1 . Storage . | . . . Processor . | . . . Hackware . | . . . Protection . | . . . Artifact . | . . . Weapon 4 | 1 3 . Energy Gun . | . . . Energy Cannon . | . . . Ballistic Gun 4 | 1 3 . Ballistic Cannon . | . . . Launcher . | . . . Special Weapon . | . . . Impact Weapon . | . . . Slashing Weapon . | . . . Piercing Weapon . | . . . Special Melee Weapon . | . . . Unidentified Prototypes . | . . . Parts Lost . | . . . Power . | . . . Propulsion . | . . . Utility . | . . . Weapon . | . . . Highest Loss Streak . | . . . Average Slot Usage (%) 79 | . 71 85 Engine 14 | . 14 14 Wheel 14 | . 14 14 Device 8 | . 1 14 Ballistic Gun 41 | . 40 42 Naked Turns . | . . . Heaviest Build 15 | 9 15 15 Greatest Support 12 | 10 12 12 Greatest Overweight (x) 1 | . 1 1 Average Overweight (x) . | . . 1 Largest Inventory Capacity 2 | 2 2 2 Average Capacity 1 | 1 2 2 Most Carried 2 | . 2 2 Average Carried 1 | . 1 2 Final Capacity 2 | 2 2 2 Final Carried 2 | . 2 2 Class Distribution -------------------- 96% | Gunner 3% | Mutant Dominant Class ---------------- Gunner | -10/Materials Gunner | -10/Mines Resources | -11 -10 -10 ----------- Run | Scr Mat Min Matter Collected 594 | 200 169 225 Remotely . | . . . Salvage Created 213 | . 121 92 Parts 17 | . 17 . Haulers Intercepted . | . . . Recyclers Shooed 1 | . . 1 Parts Field Recycled . | . . . Retrieved Matter . | . . . Parts Self-Destructed . | . . . Prevented . | . . . Kills | -11 -10 -10 ------- Run | Scr Mat Min Combat Hostiles Destroyed 13 | . 8 5 Guns 13 | . 8 5 Classes Destroyed 3 | . 2 1 Swarmer 2 | . 2 . Grunt 6 | . 6 . Assembled 5 | . . 5 Best Kill Streak 2 | . 2 2 Combat Bots Only 2 | . 2 2 Max Kills in Single Turn 2 | . 1 2 Gunslinging 1 | . . 1 Exploded . | . . . Melee . | . . . Uniques/NPCs Destroyed . | . . . Combat | -11 -10 -10 -------- Run | Scr Mat Min Damage Taken 878 | . 258 620 Core 714 | . 200 514 Absorbed by Shields . | . . . Redirected to Core 565 | . 193 372 Core Remaining (%) 100 | 100 . . Volleys Fired 45 | . 22 23 Largest 3 | . 3 3 Hottest 69 | . 69 69 Shots Fired 135 | . 66 69 Gun 135 | . 66 69 Cannon . | . . . Launcher . | . . . Special . | . . . Kinetic 135 | . 66 69 Thermal . | . . . Explosive . | . . . Electromagnetic . | . . . Robot Hit Streak 9 | . 9 5 Robot Miss Streak 6 | . 4 6 Penetration Max . | . . . Secondary Targets 2 | . 1 1 Max Gunslinging Chain 1 | . 1 1 Shots Hit Robots 68 | . 37 31 Core Hits 23 | . 12 11 Critical Hits 1 | . . 1 Critical Kills . | . . . Critical Parts Destroyed 1 | . . 1 Melee Attacks . | . . . Impact . | . . . Slashing . | . . . Piercing . | . . . Sneak Attacks . | . . . Combat Hostiles . | . . . Follow-up Attacks . | . . . Damage Inflicted 949 | . 528 421 Guns 949 | . 528 421 Cannons . | . . . Explosions . | . . . Melee . | . . . Ramming . | . . . Kinetic 949 | . 528 421 Thermal . | . . . Explosive . | . . . Electromagnetic . | . . . Impact . | . . . Slashing . | . . . Piercing . | . . . Highest Corruption . | . . . Average Corruption . | . . . Corruption Purged . | . . . Overload Shots . | . . . Overflow Damage . | . . . Projectiles . | . . . Explosions . | . . . Melee . | . . . Knockbacks . | . . . Impact . | . . . Kinetic . | . . . Secondary . | . . . Self-Inflicted Damage . | . . . Shots . | . . . Rammed . | . . . Targets Rammed . | . . . Kicked . | . . . Crushed . | . . . Highest Temperature 42 | . 42 . Average Temperature 15 | . 15 . Received Heat Transfer 54 | . 54 . Siege Activations . | . . . Robots Corrupted . | . . . Combat Hostiles . | . . . Parts Fried . | . . . Impact Corruptions . | . . . Robots Melted . | . . . Combat Hostiles . | . . . Parts Melted . | . . . Heat Transferred . | . . . Parts Sabotaged . | . . . Parts Stolen . | . . . Parts Stripped . | . . . Power Chain Reactions . | . . . Missiles Intercepted . | . . . Alert | -11 -10 -10 ------- Run | Scr Mat Min Peak Influence 310 | . 310 120 Average Influence 102 | . 129 84 Maximum Alert Level 1 | . 1 . Low Security (%) 86 | 100 68 100 Level 1 13 | . 31 . Level 2 . | . . . Level 3 . | . . . Level 4 . | . . . Level 5 . | . . . High Security . | . . . Max Security . | . . . Squads Dispatched 1 | . 1 . Investigation . | . . . Extermination . | . . . Reinforcement 1 | . 1 . Assault . | . . . Garrison . | . . . Intercept . | . . . Construction Impeded . | . . . Haulers Reinforced . | . . . Stealth | -11 -10 -10 --------- Run | Scr Mat Min Distress Signals 3 | . 3 . Communications Jammed . | . . . Distress Signals . | . . . Times Spotted 23 | . 16 7 Peak Tracking Total 5 | . 5 2 Tactical Retreats 1 | . . 1 Traps | -11 -10 -10 ------- Run | Scr Mat Min Traps Triggered 2 | . 2 . Indirectly . | . . . Trap Hack Attempts . | . . . Triggered . | . . . Disarmed . | . . . Reprogrammed . | . . . Reused . | . . . Traps Extracted . | . . . Installed . | . . . Triggered 1 | . . 1 Machines | -11 -10 -10 ---------- Run | Scr Mat Min Machines Disabled . | . . . Max in Single Turn . | . . . Machines Sabotaged . | . . . Garrisons Compromised . | . . . Overloaded Fab Kills . | . . . Fab Network Shutdowns . | . . . Hacking | -11 -10 -10 --------- Run | Scr Mat Min Machines Accessed . | . . . Terminals . | . . . Fabricators . | . . . Repair Stations . | . . . Recycling Units . | . . . Scanalyzers . | . . . Garrison Access . | . . . Total Hacks . | . . . Successful . | . . . Failed . | . . . Catastrophic . | . . . Database Lockouts . | . . . Manual . | . . . Terminals . | . . . Fabricators . | . . . Repair Stations . | . . . Recycling Units . | . . . Scanalyzers . | . . . Garrison Access . | . . . Terminal Hacks . | . . . Fabricator Hacks . | . . . Repair Station Hacks . | . . . Recycling Unit Hacks . | . . . Scanalyzer . | . . . Garrison Access Hacks . | . . . Unauthorized Hacks . | . . . Terminals . | . . . Fabricators . | . . . Repair Stations . | . . . Recycling Units . | . . . Scanalyzers . | . . . Garrison Access . | . . . Data Cores Recovered . | . . . Used . | . . . Hacking Detections . | . . . Full Trace Events . | . . . Feedback Events . | . . . Feedback Blocked . | . . . Robot Schematics Acquired . | . . . Robots Built . | . . . Matter . | . . . Time . | . . . Total Robot Build Rating . | . . . Part Schematics Acquired . | . . . Parts Built . | . . . Matter . | . . . Time . | . . . Total Part Build Rating . | . . . Parts Repaired . | . . . Time . | . . . Parts Recycled . | . . . Recycled Matter . | . . . Retrieved Matter . | . . . Retrieved Components . | . . . Parts Scanalyzed . | . . . Part Schematics Acquired . | . . . Parts Damaged . | . . . Bothacking | -11 -10 -10 ------------ Run | Scr Mat Min Used RIF Installer . | . . . Robots Hacked . | . . . Non-combat . | . . . Combat . | . . . Robot Hacks Applied . | . . . Relay Couplers Released . | . . . Robots Rewired . | . . . Allies Hacked . | . . . Hacks Repelled . | . . . Allies | -11 -10 -10 -------- Run | Scr Mat Min Total Allies 1 | . . 1 Largest Group 1 | . . 1 Highest-Rated Group 31 | . . 31 Highest-Rated Ally 31 | . . 31 Total Orders . | . . . Ally Attacks 2 | . . 2 Total Damage . | . . . Kills . | . . . Allies Corrupted . | . . . Allies Melted . | . . . Intel | -11 -10 -10 ------- Run | Scr Mat Min Robot Analysis Total . | . . . Derelict Logs Recovered . | . . . Drone Launches . | . . . Drone Recoveries . | . . . Exploration | -11 -10 -10 ------------- Run | Scr Mat Min Turns Passed 877 | 12 373 492 Spaces Moved 534 | 8 300 226 Core . | . . . Treads . | . . . Legs 7 | 7 . . Wheels 527 | 1 300 226 Hover . | . . . Flight . | . . . Fastest Speed 80 | 80 80 100 Average Speed 95 | 115 92 100 Slowest Speed 120 | 120 100 100 Overloaded Moves . | . . . Propulsion Burnouts . | . . . Robots Hopped . | . . . Cave-ins Triggered . | . . . Exploration Rate (%) 39 | 2 59 57 Regions Visited 2 Branch Regions 1 Pre-discovered Areas . | . . . Known Exits Taken . | . . . Unknown Exits Taken 2 | 1 1 . Scrap Searched 1 | . . 1 Spaces Dug . | . . . Terrain Destroyed . | . . . Melee . | . . . Projectile . | . . . AOE . | . . . Actions | -11 -10 -10 --------- Run | Scr Mat Min Total 796 | 10 346 440 Wait 201 | . 10 191 Move 532 | 7 299 226 Hop . | . . . Pick Up 2 | . 2 . Fast Attach 6 | 2 4 . Attach . | . . . Detach . | . . . Swap 1 | . 1 . Drop 4 | 1 3 . Fire 45 | . 22 23 Melee . | . . . Ram . | . . . Kick . | . . . Crush . | . . . Escape Stasis . | . . . Rewire . | . . . Trap . | . . . Miscellaneous 5 | . 5 . Route ------- -11/Scrapyard -10/Materials -10/Mines (discovered 2 exits: [*Mat x2]) History --------- Turn | Location | Event 1 | -11/Scrapyard | Discovered new exit (range 1) 6 | -11/Scrapyard | Upgraded with Utility slot (x1) 6 | -11/Scrapyard | Upgraded with Weapon slot (x2) 13 | -11/Scrapyard | Entered Materials 83 | -10/Materials | Discovered new exit (range 8) 344 | -10/Materials | Build established: Gunner 386 | -10/Materials | Entered Mines 389 | -10/Mines | Received a Mining Laser from a helpful Derelict 398 | -10/Mines | Assembled infested the area 701 | -10/Mines | Discovered new exit (range 10) 790 | -10/Mines | Discovered new exit (range 7) 819 | -10/Mines | Core integrity fell below 50% 860 | -10/Mines | Core integrity fell below 20% 878 | -10/Mines | Destroyed by as-23288 with Assembled Heavy Rifle Last Messages --------------- 00790_ EXIT=FOUND 00818_ K-01 Serf destroyed. 00818_ K-01 Serf collects debris. 00818_ as-47538 destroyed. 00819_ R-06 Scavenger collects Wheel. 00822_ K-01 Serf destroyed. 00822_ Acquired 18 matter. 00822_ R-06 Scavenger collects Structural Scanner. 00836_ as-33705 destroyed. 00839_ Acquired 21 matter. 00840_ K-01 Serf collects debris. 00840_ Acquired 14 matter. 00842_ Acquired 10 matter. 00853_ K-01 Serf collects debris. 00865_ as-19731 destroyed. 00867_ K-01 Serf collects debris. 00875_ U-05 Engineer builds a Wall. 00875_ as-23288 suffers critical hit. 00875_ Destroyed Asb. Hover Unit. 00876_ K-01 Serf collects debris. Map ----- +----------------------------------------------------+ | ??????????????????????????# #???????????????# | | ??????????????????????????# ######???????????????? | | ?????????????????????????????????????????????????? | | ?????????????????????????????????????????????????? | | ?????????????????????????????????????????????????? | | ?????????????????????????????????????????????????? | | ?????????????????????????????????????????????????? | | ?????????????????????????????????????????????????? | | ?????????????????????????????????????????????????? | | ?????????????????????????????????????????????????? | | ?????????????????????????????????????????????????? | | ?????????????????????????????????????????????????? | | ???????????????????###?? ????????????????????????? | | ???????????????? #? ?# ????????????????????????? | | ??????????????? ?# ????????????????????????? | | ????????????????% = # = ??????????????????????### | | ????????????????# =% = % ?????????????????????## % | | ????????????????# #ak ! ????????????????????## | | ????????????????? ?????????????????#### % | | ?????????????????? %##????????%????### | | ??????????????????? k* ##???????# ### # | | ???????????????????? =#! #???????# # | | ????????????????????? !!% ##??????# # | | ??????????????????????#%=! #??????##### | | ???????????????????????!! ###?????????## % | | ????????????????????????#@u ;##?????????## | | ????????????????????????#%* ##?????????## """ | | ????????????????????????#!= #?????????## """ | | ????????????????????????##%! = #????????## """ | | ?????????????????????????#!=|%!#????????# | | ???????????????????########!k!##????????# | | ???????????????????# =! ###%#?????????# | | ???????????????????# <=%=###t#??????####% ## | | ???????????????????# % #?????## %=### | | ???????????????????# ##%##?????# ! | | ???????????????????# ##%######## % | | ???????????????????# ## =%!%=!* ### | | ???????????????????################### ##?? | | ?????????????????????????????????????##########??? | | ?????????????????????????????????????????????????? | | ?????????????????????????????????????????????????? | | | | | | | | | | | | | | | | | | | +----------------------------------------------------+ Best States ------------- Heat Dissipation 39 Energy Generation 10 Energy Capacity 250 Matter Stores 300 Matter Capacity 300 Sight Range 16 Terrain Scan Density 10 Evasion (%) 44 Item Schematics ----------------- None Robot Schematics ------------------ None Fabricated ------------ Nothing Alien Tech Used ----------------- None Achievements -------------- None Challenges ------------ None RPGLIKE | -11 -10 -10 --------- Run | Scr Mat Min Levels Raised . | . . . XP Earned 4450 | 3000 950 500 XP Spent 2550 | 2550 . . Upgrades 5 | 5 . . Utility Slot 1 | 1 . . Weapon Slot 2 | 2 . . Inventory Capacity 2 | 2 . . Protomatter Created 198 | . 198 . Integrity Restored 101 | . 101 . Core 101 | . 101 . Protomatter Decayed 191 | . 148 43 Game ------ Seed SwarmShadeSabre Manual? 0 Play Time 00:11:27 Cumulative 461.6 hours Start 2020.06.01 @ 22:16:57 End 2020.06.10 @ 19:21:40 Sessions 1 Manual Loads 0 Difficulty Rogue Special Mode Winter2019/RPGLIKE Game No. 49 Rogue 4 Adventurer 16 Explorer 29 Win Type - Total 35 Types 5/16/4/5/0/4/1 Lore% 92 Gallery% 87 Achievement% 78 Wizard Run 0 Options --------- ASCII 0 Keyboard 0 Movement Numpad Keybinds 0 Fullscreen 0 Font 16/SmallcapsGlow Map View 76x50 Tactical HUD 1 Map Filters NONE Filters NONE Steam 0 RUN: 2bf98244-c03e-4978-996a-7eae219035e5